Cogmind - Beta 16 @@@ ROGUE MODE // 2025.10.31 @ 19:54:15 Player: Kate Result: Self-destructed Performance ------------- Evolutions (2) 1000 Regions Visited (3) 600 Robots Destroyed (48) 240 Value Destroyed (1421) 1421 Prototype IDs (2) 40 Alien Tech Used (0) 0 Bonus (0) 0 TOTAL SCORE: 3301 Bonus ------- None Cogmind --------- Core Integrity 216/550 Matter 291/300 Energy 94/100 System Corruption 1% Temperature Warm (108) Movement Core (200) Ox3 Location -8/Materials Parts ------- > --- POWER (1) -------- (None) > --- PROPULSION (4) --- (None) > --- UTILITY (4) ------ Cryofiber Web Small Storage Unit Advanced Visual Processing Unit Improved Signal Interpreter > --- WEAPON (2) ------- Advanced Beam Rifle Gauss Rifle > --- INVENTORY (8) ---- Improved Heat Sink Improved Heat Sink Targeting Computer Insulated Plating Hacking Suite Advanced Beam Rifle Mini Grenade Launcher Peak State ------------ > --- POWER ------------ Light Nuclear Core > --- PROPULSION ------- Aluminum Leg Aluminum Leg Carbon-fiber Leg Carbon-fiber Leg > --- UTILITY ---------- Cryofiber Web Small Storage Unit Improved Sensor Array Improved Signal Interpreter > --- WEAPON ----------- Advanced Beam Rifle Gauss Rifle > --- INVENTORY -------- Light Nuclear Core Improved Heat Sink Advanced Visual Processing Unit Targeting Computer Insulated Plating Hacking Suite Advanced Beam Rifle Mini Grenade Launcher [Rating: 31] Favorites ----------- Power Light Nuclear Core Engine Ion Engine Power Core Light Nuclear Core Propulsion Aluminum Leg Leg Aluminum Leg Utility Small Storage Unit Device Cryofiber Web Storage Small Storage Unit Processor Improved Signal Interpreter Protection Improved Weapon Shielding Weapon Gauss Rifle Energy Gun Advanced Beam Rifle Energy Cannon Advanced Beam Cannon Ballistic Gun Gauss Rifle Build | -11 -10 -9 -8 ------- Run | Yrd Mat Mat Mat Slots Evolved 4 | . . 2 2 Power . | . . . . Propulsion 2 | . . 2 . Utility 2 | . . . 2 Weapon . | . . . . Parts Attached 40 | 6 2 17 15 Power 6 | 1 . 3 2 Engine 3 | 1 . 2 . Core 3 | . . 1 2 Reactor . | . . . . Propulsion 14 | 2 1 6 5 Treads . | . . . . Leg 14 | 2 1 6 5 Wheel . | . . . . Hover . | . . . . Flight . | . . . . Utility 10 | 1 1 2 6 Device 4 | . . . 4 Storage 1 | 1 . . . Processor 3 | . . 1 2 Hackware . | . . . . Protection 2 | . 1 1 . Artifact . | . . . . Weapon 10 | 2 . 6 2 Energy Gun 4 | 1 . 2 1 Energy Cannon 1 | . . 1 . Ballistic Gun 5 | 1 . 3 1 Ballistic Cannon . | . . . . Launcher . | . . . . Special Weapon . | . . . . Impact Weapon . | . . . . Slashing Weapon . | . . . . Piercing Weapon . | . . . . Special Melee Weapon . | . . . . Unidentified Prototypes 2 | . . 1 1 Parts Lost 21 | . . 6 15 Power 3 | . . 1 2 Propulsion 12 | . . 2 10 Utility 3 | . . 1 2 Weapon 3 | . . 2 1 Highest Loss Streak 6 | . . 2 6 To Critical Strikes 1 | . . . 1 Average Backups 6 | 1 6 7 7 Power . | . 1 . . Propulsion 1 | . 2 2 . Utility 2 | . . 2 4 Weapon 2 | . 1 2 2 Tool/Special . | . . . . Unused Backups 11 | . . 3 8 Power . | . . . . Propulsion 2 | . . 2 . Utility 5 | . . . 5 Weapon 4 | . . 1 3 Tool/Special . | . . . . Average Slot Usage (%) 91 | . 98 94 87 Engine 5 | . 14 8 1 Core 4 | . . 1 6 Leg 31 | . 28 42 26 Device 7 | . . . 13 Storage 10 | . 14 11 9 Processor 7 | . . 2 12 Protection 3 | . 12 5 . Energy Gun 9 | . 14 10 7 Energy Cannon 2 | . . 1 3 Ballistic Gun 9 | . 14 10 7 Peak Build Rating 31 | 6 7 22 31 Average Rating 19 | 3 6 18 25 On Entrance 7 | . 6 7 17 Avg Prop Armor Cover (%) 6 | . . 6 6 Naked Turns . | . . . . Heaviest Build 20 | 12 13 20 19 Greatest Support 68 | 20 20 68 50 Greatest Overweight (x) 3 | . . . 3 Average Overweight (x) . | . . . . Largest Inventory Capacity 8 | 8 8 8 8 Average Capacity 7 | 6 8 8 8 Most Carried 8 | 4 8 8 8 Average Carried 6 | 1 6 7 7 Final Capacity 8 | 8 8 8 8 Final Carried 8 | 4 8 8 7 Class Distribution -------------------- 86% | Mutant 13% | Scavenger-Mutant Dominant Class ---------------- Mutant | -10/Materials Mutant | -9/Materials Mutant | -8/Materials Resources | -11 -10 -9 -8 ----------- Run | Yrd Mat Mat Mat Matter Collected 974 | 183 117 365 309 Remotely . | . . . . Salvage Created 1832 | . 170 868 794 Parts 99 | . 8 40 51 Haulers Intercepted 1 | . 1 . . Recyclers Shooed 3 | . 1 2 . Parts Field Recycled . | . . . . Retrieved Matter . | . . . . Parts Self-Destructed . | . . . . Prevented . | . . . . Parts Restored . | . . . . Kills | -11 -10 -9 -8 ------- Run | Yrd Mat Mat Mat Combat Hostiles Destroyed 37 | . 3 18 16 Guns 35 | . 3 18 14 Cannons 2 | . . . 2 Classes Destroyed 10 | . 3 4 3 Worker 6 | . . 1 5 Tunneler 1 | . . . 1 Hauler 1 | . 1 . . Recycler 1 | . . 1 . Operator 1 | . . . 1 Watcher 1 | . . 1 . Swarmer 8 | . 1 3 4 Grunt 20 | . 2 11 7 Sentry 8 | . . 4 4 Hunter 1 | . . . 1 Best Kill Streak 6 | . 2 4 6 Combat Bots Only 4 | . 2 4 4 Max Kills in Single Turn 2 | . 1 2 2 Gunslinging 1 | . . 1 . Exploded . | . . . . Melee . | . . . . Uniques/NPCs Destroyed . | . . . . Combat | -11 -10 -9 -8 -------- Run | Yrd Mat Mat Mat Hostile Shots Fired 302 | . 19 135 148 Missed 77 | . 3 35 39 Hits 225 | . 16 100 109 Projectile 225 | . 16 100 109 Critical Strikes 10 | . 1 2 7 Damage Taken 3108 | . 234 1168 1706 Core 561 | . 114 113 334 Absorbed by Shields . | . . . . Redirected to Shielding 117 | . 9 108 . Core Remaining (%) 75 | 100 54 71 . Volleys Fired 182 | . 20 79 83 Largest 2 | . 2 2 2 Hottest 113 | . 60 79 113 Shots Fired 313 | . 40 134 139 Gun 298 | . 40 134 124 Cannon 15 | . . . 15 Launcher . | . . . . Special . | . . . . Kinetic 163 | . 20 89 54 Thermal 125 | . 20 44 61 Explosive . | . . . . Electromagnetic 25 | . . 1 24 Robot Hit Streak 22 | . 7 22 13 Robot Miss Streak 4 | . 4 4 3 Penetration Max 1 | . . . 1 Secondary Targets 6 | . . 4 2 Max Gunslinging Chain 1 | . . 1 1 Shots Hit Robots 205 | . 22 93 90 Core Hits 80 | . 10 35 35 Critical Kills . | . . . . Critical Parts Destroyed . | . . . . Critical Strikes 6 | . . 5 1 Burn 6 | . . 5 1 Melee Attacks . | . . . . Impact . | . . . . Slashing . | . . . . Piercing . | . . . . Sneak Attacks . | . . . . Combat Hostiles . | . . . . Follow-up Attacks . | . . . . Damage Inflicted 3427 | . 213 1247 1967 Guns 3069 | . 213 1247 1609 Cannons 266 | . . . 266 Explosions 90 | . . . 90 Melee . | . . . . Ramming 2 | . . . 2 Kinetic 1626 | . 62 765 799 Thermal 1549 | . 151 482 916 Explosive . | . . . . Electromagnetic 250 | . . . 250 Impact . | . . . . Slashing . | . . . . Piercing . | . . . . Highest Corruption 1 | . . . 1 Average Corruption 1 | . . . 1 Corruption Purged . | . . . . Corruption Blocked . | . . . . Effects 4 | . . . 4 Message Errors 1 | . . . 1 Matter Fused 1 | . . . 1 Heat Flow Errors 1 | . . . 1 Misfires 1 | . . . 1 Overload Shots . | . . . . Overflow Damage . | . . . . Projectiles . | . . . . Explosions . | . . . . Melee . | . . . . Knockbacks . | . . . . Impact . | . . . . Kinetic . | . . . . Secondary . | . . . . Self-Inflicted Damage 56 | . . . 56 Shots 1 | . . . 1 Rammed . | . . . . Targets Rammed 3 | . . . 3 Kicked 3 | . . . 3 Crushed . | . . . . Highest Temperature 388 | . 103 299 388 Average Temperature 82 | . 38 79 103 Received Heat Transfer 1296 | . 78 471 747 Effects 3 | . . . 3 Energy Bleed 1 | . . . 1 Interference 2 | . . . 2 Siege Activations . | . . . . Martial Activations . | . . . . Shielding Activations . | . . . . Robots Disrupted . | . . . . Combat Hostiles . | . . . . Robots Corrupted . | . . . . Combat Hostiles . | . . . . Parts Fried . | . . . . Impact Corruptions . | . . . . Robots Melted . | . . . . Combat Hostiles . | . . . . Parts Melted 7 | . . 5 2 Heat Transferred 3632 | . 350 1591 1691 Parts Sabotaged . | . . . . Parts Stolen . | . . . . Parts Stripped . | . . . . Power Chain Reactions 1 | . . . 1 Alert | -11 -10 -9 -8 ------- Run | Yrd Mat Mat Mat Maximum Alert Level 1 | . . 1 . Low Security (%) 96 | 100 100 89 100 Level 1 3 | . . 10 . Level 2 . | . . . . Level 3 . | . . . . Level 4 . | . . . . Level 5 . | . . . . High Security . | . . . . Max Security . | . . . . Peak Influence 213 | . 80 213 155 Initial 82 | . . 1 82 Average 58 | . 32 94 51 Influence Increases 1116 | . 114 506 496 Destroy 0b10 Robot/C 740 | . 60 360 320 Destroy 0b10 Robot/NC 55 | . 5 15 35 Destroy Leader 174 | . 12 92 70 Successful Hack 15 | . 7 8 . Disable Machine 75 | . . 30 45 Destroy Structure 12 | . . 1 11 Partial Spotted 15 | . . . 15 Lose Combat Pursuer 30 | . 30 . . Influence Decreases 988 | . 110 314 564 Entered New Map 117 | . . 3 114 Time Decay 661 | . 110 251 300 Lost Part 210 | . . 60 150 Squads Dispatched 3 | . . 1 2 Investigation 1 | . . 1 . Extermination . | . . . . Reinforcement 2 | . . . 2 Assault . | . . . . Garrison . | . . . . Intercept . | . . . . Searches Triggered . | . . . . Construction Impeded 1 | . . . 1 Haulers Reinforced . | . . . . Active Scanning Responses . | . . . . Cargo Convoy Interrupts . | . . . . Stealth | -11 -10 -9 -8 --------- Run | Yrd Mat Mat Mat Distress Signals 3 | . 1 1 1 Communications Jammed . | . . . . Distress Signals . | . . . . Times Spotted 54 | . 7 20 27 Peak Tracking Total 5 | . 3 4 5 Tactical Retreats 1 | . 1 . . Traps | -11 -10 -9 -8 ------- Run | Yrd Mat Mat Mat Traps Triggered 3 | . 1 . 2 Indirectly . | . . . . Trap Hack Attempts . | . . . . Triggered . | . . . . Disarmed . | . . . . Reprogrammed . | . . . . Reused . | . . . . Traps Extracted . | . . . . Installed . | . . . . Triggered . | . . . . Machines | -11 -10 -9 -8 ---------- Run | Yrd Mat Mat Mat Machines Disabled 5 | . . 2 3 Max in Single Turn 1 | . . 1 1 Machines Repaired . | . . . . Machines Dismantled . | . . . . Machines Sabotaged . | . . . . Overloaded Fab Kills . | . . . . Hacking | -11 -10 -9 -8 --------- Run | Yrd Mat Mat Mat Machines Accessed 6 | . 2 3 1 Terminals 5 | . 2 3 . Fabricators . | . . . . Repair Stations . | . . . . Recycling Units . | . . . . Scanalyzers 1 | . . . 1 Garrison Access . | . . . . Total Hacks 19 | . 5 10 4 Successful 13 | . 3 7 3 Failed 5 | . 2 3 . Catastrophic 2 | . 2 . . Database Lockouts 1 | . . . 1 Manual 3 | . 3 . . Terminals 15 | . 5 10 . Fabricators . | . . . . Repair Stations . | . . . . Recycling Units . | . . . . Scanalyzers 4 | . . . 4 Garrison Access . | . . . . Terminal Hacks 9 | . 2 7 . Record 4 | . 2 2 . Robot Analysis 2 | . . 2 . Emergency Access Points 1 | . . 1 . Alert Level 1 | . . 1 . Dispatch Records 1 | . . 1 . Fabricator Hacks . | . . . . Repair Station Hacks . | . . . . Recycling Unit Hacks . | . . . . Scanalyzer 3 | . . . 3 Insert Component 1 | . . . 1 Analyze 1 | . . . 1 Retrieve Study 1 | . . . 1 Garrison Access Hacks . | . . . . Unauthorized Hacks 1 | . 1 . . Terminals 1 | . 1 . . Disrupt 1 | . 1 . . Fabricators . | . . . . Repair Stations . | . . . . Recycling Units . | . . . . Scanalyzers . | . . . . Garrison Access . | . . . . Data Cores Recovered 1 | . . . 1 Used . | . . . . Hacking Detections 4 | . 1 2 1 Full Trace Events 2 | . 1 1 . Feedback Events . | . . . . Feedback Blocked . | . . . . Robot Schematics Acquired . | . . . . Robots Built . | . . . . Authchips . | . . . . Time . | . . . . Total Robot Build Rating . | . . . . Part Schematics Acquired 1 | . . . 1 Parts Built . | . . . . Authchips . | . . . . Time . | . . . . Total Part Build Rating . | . . . . Part Studies Acquired . | . . . . Parts Repaired . | . . . . Time . | . . . . Parts Recycled . | . . . . Recycled Matter . | . . . . Retrieved Matter . | . . . . Retrieved Components . | . . . . Parts Scanalyzed 1 | . . . 1 Part Schematics Acquired 1 | . . . 1 Parts Damaged . | . . . . Bothacking | -11 -10 -9 -8 ------------ Run | Yrd Mat Mat Mat Used RIF Installer . | . . . . Robots Hacked . | . . . . Non-combat . | . . . . Combat . | . . . . Robot Hacks Applied . | . . . . Relay Couplers Released . | . . . . Fabnet Peak Effective % . | . . . . Robots Rewired . | . . . . Allies Hacked . | . . . . Hacks Repelled . | . . . . Allies | -11 -10 -9 -8 -------- Run | Yrd Mat Mat Mat Total Allies . | . . . . Largest Group . | . . . . Highest-Rated Group . | . . . . Highest-Rated Ally . | . . . . Total Orders . | . . . . Ally Attacks . | . . . . Total Damage . | . . . . Kills . | . . . . Allies Corrupted . | . . . . Allies Melted . | . . . . Intel | -11 -10 -9 -8 ------- Run | Yrd Mat Mat Mat Active Infowar (turns) 746 | . . . 746 Optics 100 | . . . 100 Sensors 646 | . . . 646 Robot Analysis Total 2 | . . 2 . Derelict Logs Recovered . | . . . . Drone Launches . | . . . . Drone Recoveries . | . . . . Exploration | -11 -10 -9 -8 ------------- Run | Yrd Mat Mat Mat Turns Passed 2049 | 113 290 630 1016 Spaces Moved 1059 | 89 186 293 491 Core 13 | 10 . . 3 Treads . | . . . . Legs 1046 | 79 186 293 488 Wheels . | . . . . Hover . | . . . . Flight . | . . . . Fastest Speed 50 | 50 120 120 120 Average Speed 122 | 112 120 127 122 Slowest Speed 200 | 120 120 130 200 Overloaded Moves . | . . . . Propulsion Burnouts . | . . . . Robots Hopped . | . . . . Potential Cave-ins . | . . . . Cave-ins Triggered . | . . . . Exploration Rate (%) 37 | 4 51 33 62 Regions Visited 3 Branch Regions . Pre-discovered Areas . | . . . . Known Exits Taken . | . . . . Unknown Exits Taken 3 | 1 1 1 . Scrap Searched . | . . . . Spaces Dug . | . . . . Terrain Destroyed 8 | . . . 8 Melee . | . . . . Projectile 2 | . . . 2 AOE 6 | . . . 6 Terrain Rammed . | . . . . Walls Destroyed . | . . . . Machines Disabled . | . . . . Actions | -11 -10 -9 -8 --------- Run | Yrd Mat Mat Mat Total 1508 | 99 216 425 768 Wait 179 | . 5 15 159 Move 1056 | 88 185 292 491 Hop . | . . . . Pick Up 25 | 5 4 8 8 Fast Attach 19 | 5 . 5 9 Attach 12 | 1 1 5 5 Detach 4 | . . 2 2 Swap 10 | . 1 7 2 Drop 18 | . . 12 6 Fire 182 | . 20 79 83 Melee . | . . . . Ram . | . . . . Kick 3 | . . . 3 Crush . | . . . . Escape Stasis . | . . . . Rewire . | . . . . Trap . | . . . . Miscellaneous . | . . . . Route ------- -11/Scrapyard -10/Materials (discovered 2 exits: *Mat / [*Min]) -9/Materials -8/Materials History --------- Turn | Location | Event 4 | -11/Scrapyard | Discovered new exit (range 16) 114 | -11/Scrapyard | Entered Materials 306 | -10/Materials | Discovered new exit (range 10) 312 | -10/Materials | Build established: Mutant 384 | -10/Materials | Discovered new exit (range 16) 404 | -10/Materials | Entered another Materials area 404 | -9/Materials | Evolved 2 slots: Propulsion x2 1006 | -9/Materials | Discovered new exit (range 3) 1034 | -9/Materials | Entered another Materials area 1034 | -8/Materials | Evolved 2 slots: Utility x2 1263 | -8/Materials | Lost 4 parts (3n1w) 1792 | -8/Materials | Central database locked down 1989 | -8/Materials | Core integrity fell below 50% 2004 | -8/Materials | Lost 6 parts (1p4n1u) 2050 | -8/Materials | Self-destructed Last Messages --------------- 02007_ Acquired 10 matter. 02009_ R-06 Scavenger collects Particle Gun. 02011_ Acquired Aluminum Leg. 02012_ K-01 Serf collects debris. 02014_ Acquired 10 matter. 02015_ K-01 Serf collects debris. 02018_ Acquired Imp. Heat Sink. 02025_ K-01 Serf cleans the Pressure Siphon. 02041_ Critical hit (Burn: +37). 02041_ Slug penetrates G-47 Trooper. 02043_ R-06 Scavenger collects Particle Gun. 02044_ K-01 Serf destroyed. 02044_ Slug penetrates Wall. 02044_ K-01 Serf collects debris. 02046_ Aluminum Leg destroyed. 02047_ Slug penetrates G-47 Trooper. 02048_ System corrupted: Matter fused (-7). 02048_ U-05 Engineer builds a Door. 02049_ Aluminum Leg destroyed. 02049_ K-01 Serf collects debris. Map ----- +----------------------------------------------------+ | #+###### ##???????# ![ #???????# """ # ??# | | #^#????????# ! #???????# """ # """?# | | """ # #????????########### ????# """ # "T" # | | """ # ??????????????????? #???# # + | | """ + ????????????????? #???########?????# | | # ????????????????? #????????????????# | | ### ?##########??????# #????????????????# | | #?? ?# """ #??????# #????????????????? | | #?? ## "Y" #??????# #????????????????? | | ########?? ## #??????+ #????????????????? | | ?????????? ## #??????# #????????????????? | | ?????????# ## #??????# #????????????????? | | ?????????# ## """ #??????# #????????????????? | | ?????????# ## """ #??????# #??#####?????????? | | ?????????# ## """ #??????# #? !?????????? | | ?????????# ## #??????# #? """ ????????? | | ########## #######+########## # """ ????????? | | # r # """ !#???????? | | # + #???????? | | # % w """ # """ #???????? | | ##+#############/##### """ # """ ????????? | | #?# ![^ #u """ #? """ ????????? | | #?# """ """ # """ #? ?????????? | | #?# """ """ # #################+ | | #?# """ """ # k | | / # # @k | | ### ! # * a %% a | | * % #?# "T" # =%#####+###########+#####?? | | % #?############# !# ! %[ ! #?????????????? | | ########?????????????# # ""%"""" #?????????????? | | ?????????????????????#g # ""%"""" #?????????????? | | ?????????????????????#u # """"""" #?????????????? | | ?????????????????????+ # """"""" #?????????????? | | #??????????????????? # ?# """"""" #?????????????? | | #??????????????????? #g ?# #?????????????? | | #?????????????????? ?# ??# ! #?????????????? | | #?????????????????? ?# ??###########?????????????? | | #?????????????????#??# ??????????????????????????? | | #????????????????????# ??????????????????????????? | | #????????????????????#???????????????????????????? | | #????????????????????????????????????????????????? | | ?????????????????????????????????????????????????? | | ?????????????????????????????????????????????????? | | ?????????????????????????????????????????????????? | | ?????????????????????????????????????????????????? | | ?????????????????????????????????????????????????? | | ?????????????????????????????????????????????????? | | ?????????????????????????????????????????????????? | | ?????????????????????????????????????????????????? | | ?????????????????????????????????????????????????? | +----------------------------------------------------+ Best States ------------- Heat Dissipation 59 Energy Generation 14 Energy Capacity 265 Matter Stores 300 Matter Capacity 300 Sight Range 20 Robot Scan Range 15 Terrain Scan Density 10 Base Temperature (-) 100 Weapon Shielding 66 Evasion (%) 55 Targeting Accuracy 6 Item Schematics ----------------- Adv. Beam Rifle | -8/Materials | Scanalyzed Robot Schematics ------------------ None Fabricated ------------ Nothing Repaired ---------- Nothing Studied --------- None Alien Tech Used ----------------- None Achievements -------------- DATA ERROR: Steam Global Achievement% DIY Cooler For Emergencies Only I Have A Map? Organ Harvest Spot Them First There's More Where That Came From Challenges ------------ None Game ------ Seed TransportAntisysDetonator Manual? 0 Play Time 00:27:41 Cumulative 76.0 hours Start 2025.10.30 @ 14:22:16 End 2025.10.31 @ 19:54:15 Sessions 5 Manual Loads 0 Difficulty Rogue Special Mode None Game No. 150 Rogue 150 Adventurer 0 Explorer 0 Win Type - Total 1 Types 1/0/0/0/0/0/0/0/0/0 Lore% 56 Gallery% 51 Achievement% 27 Wizard Run 0 Options --------- Layout 1 ASCII 0 Keyboard 1 Movement Numpad Keybinds 0 Fullscreen 1 Font 32/Terminus Map View 50x35 Zoom Use 0% Tactical HUD 1 Map Filters NONE Filters NONE Steam 1 RUN: a0f2afc6-a5b3-4983-aba0-01f6d73b20c2